fUSD/lending_fUSD_20240204
["ID","MTS","AMOUNT","RATE_DAILY","PERIOD"]
[313267408,1707060657097,-500.0,0.00047123,31]
[313267409,1707060657106,-500.0,0.00047123,31]
[313267410,1707060657115,-500.0,0.00047123,31]
[313267411,1707060657124,-549.38438862,0.00047123,31]
[313267412,1707060657133,-500.0,0.00047123,31]
[313267413,1707060657142,-500.0,0.00047123,31]
[313267414,1707060657151,-500.0,0.00047123,31]
[313267415,1707060657161,-500.01014741,0.00047123,31]
[313267416,1707060657170,-1000.0,0.00047123,7]
[313267417,1707060657179,-500.0,0.00047123,31]
[313267418,1707060657189,-617.63181686,0.00047123,31]
[313267419,1707060657198,-500.0,0.00047123,31]
[313267420,1707060657208,-637.9354899,0.00047123,31]
[313267421,1707060657217,-500.0,0.00047123,31]
[313267422,1707060657227,-609.32180262,0.00047123,31]
[313267423,1707060657236,-500.0,0.00047123,31]
[313267424,1707060657246,-500.0,0.00047123,31]
[313267425,1707060657256,-571.52822972,0.00047123,31]
[313267426,1707060657266,-512.10468242,0.00047123,31]
[313267427,1707060657276,-500.0,0.00047123,31]
[313267428,1707060657287,-500.0,0.00047123,31]
[313267429,1707060657297,-500.0,0.00047123,31]
[313267430,1707060657307,-500.0,0.00047123,31]
[313267431,1707060657317,-500.0,0.00047123,31]
[313267432,1707060657328,-556.52816485,0.00047123,31]
[313267433,1707060657338,-4160.16,0.00047123,31]
[313267434,1707060657348,-500.0,0.00047123,31]
[313267435,1707060657358,-500.0,0.00047123,31]
[313267436,1707060657367,-500.0,0.00047123,31]
[313267437,1707060657376,-500.0,0.00047123,31]
[313267438,1707060657386,-500.0,0.00047123,31]
[313267439,1707060657396,-500.0,0.00047123,31]
[313267440,1707060657406,-540.40254661,0.00047123,31]
[313267441,1707060657416,-500.0,0.00047123,31]
[313267442,1707060657425,-500.0,0.00047123,31]
[313267443,1707060657434,-547.27994779,0.00047123,31]
[313267444,1707060657547,-500.0,0.00047123,31]
[313267445,1707060657561,-1252.23,0.00047123,31]
[313267446,1707060657570,-533.01543278,0.00047123,31]
[313267447,1707060657579,-500.0,0.00047123,31]
[313267448,1707060657589,-500.0,0.00047123,31]
[313267449,1707060657599,-500.0,0.00047123,31]
[313267450,1707060657609,-500.0,0.00047123,31]
[313267451,1707060657618,-595.86854303,0.00047123,31]
[313267452,1707060657627,-500.0,0.00047123,31]
[313267453,1707060657639,-605.42436893,0.00047123,31]
[313267454,1707060657649,-500.0,0.00047123,31]
[313267455,1707060657659,-500.0,0.00047123,31]
[313267456,1707060657669,-202.60089597,0.00047123,31]
[313267457,1707060657678,-278.25848739,0.00047123,31]
[313267458,1707060657688,-154.8373976,0.00047123,31]
[313267459,1707060657697,-500.0,0.00047123,31]
[313267460,1707060657706,-586.96,0.00047123,31]
[313267461,1707060657716,-500.0,0.00047123,31]
[313267462,1707060657726,-500.0,0.00047123,31]
[313267463,1707060657736,-500.0,0.00047123,31]
[313267464,1707060657745,-576.98048503,0.00047123,31]
[313267465,1707060657755,-827.2,0.00047123,31]
[313267466,1707060657764,-1000.0,0.00047123,7]
[313267467,1707060657774,-500.0,0.00047123,31]
[313267468,1707060657783,-509.19996442,0.00047123,31]
[313267469,1707060657792,-557.79014986,0.00047123,31]
[313267470,1707060657802,-500.0,0.00047123,31]
[313267471,1707060657811,-500.0,0.00047123,31]
[313267472,1707060657821,-500.0,0.00047123,31]
[313267473,1707060657831,-500.0,0.00047123,31]
[313267474,1707060657840,-639.65067973,0.00047123,31]
[313267475,1707060657849,-500.0,0.00047123,31]
[313267476,1707060657858,-250.87827852,0.00047123,31]
[313267477,1707060657867,-629.50038107,0.00047123,31]
[313267478,1707060657877,-330.58448881,0.00047123,31]
[313267479,1707060657886,-519.80554126,0.00047123,31]
[313267480,1707060657896,-1238.33,0.00047123,31]
[313267481,1707060657905,-500.0,0.00047123,31]
[313267482,1707060657917,-2478.43,0.00047123,5]
[313267483,1707060657926,-500.0,0.00047123,31]
[313267484,1707060657936,-500.0,0.00047123,31]
[313267485,1707060657946,-224.94279616,0.00047123,31]
[313267486,1707060657955,-500.0,0.00047123,31]
[313267487,1707060657965,-500.0,0.00047123,31]
[313267488,1707060657974,-812.77,0.00047123,31]
[313267489,1707060657984,-586.70314899,0.00047123,31]
[313267490,1707060657993,-500.0,0.00047123,31]
[313267491,1707060658003,-532.59677335,0.00047123,31]
[313267492,1707060658013,-604.68079458,0.00047123,31]
[313267493,1707060658023,-500.0,0.00047123,31]
[313267494,1707060658032,-500.0,0.00047123,31]
[313267495,1707060658041,-500.0,0.00047123,31]
[313267496,1707060658050,-364.29002586,0.00047123,31]
[313267497,1707060658059,-521.33454036,0.00047123,7]
[313267498,1707060658069,-500.0,0.00047123,31]
[313267499,1707060658078,-500.0,0.00047123,31]
[313267500,1707060658088,-500.0,0.00047123,31]
[313267501,1707060658097,-500.0,0.00047123,31]
[313267502,1707060658106,-500.0,0.00047123,31]
[313267503,1707060658117,-500.0,0.00047123,31]
[313267504,1707060658126,-1188.46,0.00047123,31]
[313267505,1707060658135,-500.0,0.00047123,31]
[313267506,1707060658144,-532.40599634,0.00047123,31]
[313267507,1707060658154,-500.0,0.00047123,31]
[313267508,1707060658163,-554.47530321,0.00047123,31]
[313267509,1707060658173,-182.52005538,0.00047123,31]
[313267510,1707060658183,-543.53059432,0.00047123,31]
[313267511,1707060658192,-221.47599294,0.00047123,31]
[313267512,1707060658201,-500.0,0.00047123,31]
[313267513,1707060658210,-500.0,0.00047123,31]
[313267514,1707060658219,-500.0,0.00047123,31]
[313267515,1707060658229,-1000.0,0.000472,20]
[313267516,1707060658238,-1000.0,0.000472,20]
[313267517,1707060658247,-150.0,0.00047202,30]
[313267518,1707060658256,-150.0,0.00047202,30]
[313267519,1707060658266,-1000.0,0.000473,7]
[313267520,1707060658275,-2000.0,0.00047316,120]
[313267521,1707060658286,-2000.0,0.00047316,120]
[313267522,1707060658295,-1829.55202078,0.00047316,120]
[313267523,1707060658306,-1186.0,0.0004733,2]
[313267524,1707060658315,-841.08705015,0.00047353,5]
[313267525,1707060658325,-75064.34,0.00047394,5]
[313267526,1707060658336,-1000.0,0.00047397,55]
[313267527,1707060658345,-29807.37,0.000474,7]
[313267528,1707060658356,-5000.01,0.000474,65]
[313267529,1707060658367,-511.78276724,0.00047421,30]
[313267530,1707060658376,-16722.22,0.0004744,8]
[313267531,1707060658386,-150.0,0.0004744,2]
[313267532,1707060658397,-250.0,0.0004747,3]
[313267533,1707060658408,-401.58271308,0.0004747,3]
[313267534,1707060658418,-525.0,0.0004749,2]
[313267535,1707060658427,-260.43022386,0.00047495,4]
[313267536,1707060658436,-189.58838767,0.00047495,4]
[313267537,1707060658445,-1879.36554185,0.00047496,4]
[313267538,1707060658455,-155.47896354,0.00047496,4]
[313267539,1707060658465,-169.33555716,0.00047496,5]
[313267540,1707060658475,-158.98643164,0.00047498,4]
[313267541,1707060658485,-500.0,0.000475,10]
[313267542,1707060658494,-213.32,0.000475,7]
[313267543,1707060658505,-2000.0,0.000475,32]
[313267544,1707060658516,-164.476413,0.000475,37]
[313267545,1707060658525,-187.0,0.000475,30]
[313267546,1707060658534,-2005.0,0.000475,14]
[313267547,1707060658545,-1000.0,0.000475,2]
[313267548,1707060658557,-500.0,0.000475,26]
[313267549,1707060658570,-150.0,0.000475,18]
[313267550,1707060658580,-172.0,0.0004753,65]
[313267551,1707060658590,-500.0,0.00047554,7]
[313267552,1707060658600,-2208.78,0.00047572,15]
[313267553,1707060658609,-5087.38571532,0.000476,2]
[313267554,1707060658618,-500.0,0.000476,26]
[313267555,1707060658627,-1000.0,0.00047671,60]
[313267556,1707060658639,-500.0,0.00047671,30]
[313267557,1707060658649,-911.45,0.00047671,30]
[313267558,1707060658659,-172.33231393,0.00047671,31]
[313267559,1707060658670,-511.01065991,0.00047671,31]
[313267560,1707060658682,-521.63136084,0.00047671,31]
[313267561,1707060658691,-577.01977948,0.00047671,31]
[313267562,1707060658701,-777.44,0.00047671,20]
[313267563,1707060658710,-217.48835983,0.00047671,31]
[313267564,1707060658719,-1000.0,0.00047671,30]
[313267565,1707060658730,-500.0,0.00047671,31]
[313267566,1707060658739,-500.0,0.00047671,10]
[313267567,1707060658749,-500.0,0.00047671,31]
[313267568,1707060658760,-181.28220891,0.00047671,31]
[313267569,1707060658770,-556.84180312,0.00047671,31]
[313267570,1707060658779,-500.0,0.00047671,31]
[313267571,1707060658788,-300.53182954,0.00047671,31]
[313267572,1707060658799,-571.52580599,0.00047671,31]
[313267573,1707060658808,-547.92407733,0.00047671,31]
[313267574,1707060658818,-301.49404283,0.00047671,31]
[313267575,1707060658827,-500.0,0.00047671,31]
[313267576,1707060658836,-556.42268988,0.00047671,31]
[313267577,1707060658845,-375.50570169,0.00047671,31]
[313267578,1707060658854,-533.36999977,0.00047671,31]
[313267579,1707060658863,-522.1274012,0.00047671,31]
[313267580,1707060658872,-500.0,0.00047671,31]
[313267581,1707060658881,-563.11814932,0.00047671,31]
[313267582,1707060658890,-500.0,0.00047671,31]
[313267583,1707060658899,-500.0,0.00047671,31]
[313267584,1707060658909,-500.0,0.00047671,31]
[313267585,1707060658918,-575.2818452,0.00047671,31]
[313267586,1707060658927,-574.90837768,0.00047671,31]
[313267587,1707060658936,-553.79830084,0.00047671,31]
[313267588,1707060658945,-500.0,0.00047671,31]
[313267589,1707060658955,-500.0,0.00047671,31]
[313267590,1707060658964,-551.29258193,0.00047671,31]
[313267591,1707060658973,-500.0,0.00047671,31]
[313267592,1707060658983,-500.0,0.00047671,7]
[313267593,1707060658993,-619.44,0.00047671,31]
[313267594,1707060659002,-590.68271664,0.00047671,31]
[313267595,1707060659011,-500.0,0.00047671,31]
[313267596,1707060659020,-1927.47,0.00047671,31]
[313267597,1707060659029,-236.01297307,0.00047671,31]
[313267598,1707060659039,-500.0,0.00047671,31]
[313267599,1707060659048,-500.0,0.00047671,31]
[313267600,1707060659058,-607.74725741,0.00047671,31]
[313267601,1707060659067,-604.62460184,0.00047671,31]
[313267602,1707060659076,-500.0,0.00047671,31]
[313267603,1707060659086,-606.13056283,0.00047671,31]
[313267604,1707060659095,-1140.37,0.00047671,31]
[313267605,1707060659105,-576.28,0.00047671,31]
[313267606,1707060659116,-500.0,0.00047671,31]
[313267607,1707060659125,-283.42880631,0.00047671,31]
[313267608,1707060659136,-500.0,0.00047671,31]
[313267609,1707060659146,-283.68719274,0.00047671,31]
[313267610,1707060659155,-288.70287716,0.00047671,31]
[313267611,1707060659165,-4970.02,0.00047671,31]
[313267612,1707060659176,-229.55364234,0.00047671,31]
[313267613,1707060659186,-618.05009642,0.00047671,31]
[313267614,1707060659196,-215.90707209,0.00047671,31]
[313267615,1707060659205,-500.0,0.00047671,31]
[313267616,1707060659215,-500.0,0.00047671,31]
[313267617,1707060659224,-500.0,0.00047671,31]
[313267618,1707060659233,-500.0,0.00047671,10]
[313267619,1707060659242,-500.0,0.00047671,31]
[313267620,1707060659251,-500.0,0.00047671,31]
[313267621,1707060659260,-513.4420665,0.00047671,31]
[313267622,1707060659269,-500.0,0.00047671,31]
[313267623,1707060659278,-500.0,0.00047671,31]
[313267624,1707060659287,-605.57490786,0.00047671,31]
[313267625,1707060659296,-1109.96,0.00047671,31]
[313267626,1707060659305,-532.20424103,0.00047671,31]
[313267627,1707060659314,-500.0,0.00047671,31]
[313267628,1707060659323,-500.0,0.00047671,31]
[313267629,1707060659332,-500.0,0.00047671,31]
[313267630,1707060659341,-526.74,0.00047671,31]
[313267631,1707060659350,-527.37982752,0.00047671,31]
[313267632,1707060659359,-212.68715419,0.00047671,31]
[313267633,1707060659368,-523.43,0.00047671,31]
[313267634,1707060659377,-618.2728501,0.00047671,31]
[313267635,1707060659386,-500.0,0.00047671,31]
[313267636,1707060659396,-544.0045746,0.00047671,31]
[313267637,1707060659405,-500.0,0.00047671,31]
[313267638,1707060659414,-500.0,0.00047671,31]
[313267639,1707060659426,-313.71865906,0.00047671,31]
[313267640,1707060659435,-522.26099223,0.00047671,31]
[313267641,1707060659446,-500.0,0.00047671,31]
[313267642,1707060659455,-1000.0,0.00047671,7]
[313267643,1707060659465,-500.0,0.00047671,31]
[313267644,1707060659475,-228.952979,0.00047671,31]
[313267645,1707060659486,-631.49548103,0.00047671,31]
[313267646,1707060659495,-500.0,0.00047671,31]
[313267647,1707060659504,-500.0,0.00047671,31]
[313267648,1707060659513,-571.26954496,0.00047671,31]
[313267649,1707060659522,-500.0,0.00047671,31]
[313267650,1707060659531,-615.59864605,0.00047671,31]
[313267651,1707060659541,-515.53862604,0.00047671,31]
[313267652,1707060659552,-1047.55,0.00047671,31]
[313267653,1707060659564,-500.0,0.00047671,31]
[313267654,1707060659572,-587.95,0.00047671,31]
[313267655,1707060659582,-217.6764994,0.00047671,31]
[313267656,1707060659591,-4412.46,0.00047671,31]
[313267657,1707060659601,-500.0,0.00047671,31]
[313267658,1707060659612,-500.0,0.00047671,7]
[313267659,1707060659622,-500.0,0.00047671,31]
[313267660,1707060659630,-500.0,0.00047671,31]
[313267661,1707060659642,-500.0,0.00047671,31]
[313267662,1707060659652,-172.38373102,0.00047671,31]
[313267663,1707060659662,-500.0,0.00047671,31]
[313267664,1707060659673,-603.51498044,0.00047671,31]
[313267665,1707060659682,-500.0,0.00047671,31]
[313267666,1707060659692,-500.0,0.00047671,31]
[313267667,1707060659799,-500.0,0.00047671,31]
[313267668,1707060659809,-523.92014735,0.00047671,31]
[313267669,1707060659819,-506.77760263,0.00047671,31]
[313267670,1707060659828,-500.0,0.00047671,31]
[313267671,1707060659837,-167.3394184,0.00047671,31]
[313267672,1707060659847,-500.0,0.00047671,31]
[313267673,1707060659857,-500.0,0.00047671,31]
[313267674,1707060659866,-500.0,0.00047671,31]
[313267675,1707060659876,-500.0,0.00047671,31]
[313267676,1707060659885,-500.0,0.00047671,31]
[313267677,1707060659894,-500.0,0.00047671,31]
[313267678,1707060659904,-500.0,0.00047671,31]
[313267679,1707060659913,-2089.65,0.00047671,5]
[313267680,1707060659923,-500.0,0.00047671,31]
[313267681,1707060659933,-620.67055771,0.00047671,31]
[313267682,1707060659942,-500.0,0.00047671,31]
[313267683,1707060659952,-2006.88,0.00047671,31]
[313267684,1707060659961,-500.0,0.00047671,31]
[313267685,1707060659970,-500.0,0.00047671,31]
[313267686,1707060659981,-526.64174942,0.00047671,31]
[313267687,1707060659990,-500.0,0.00047671,31]
[313267688,1707060659999,-500.0,0.00047671,31]
[313267689,1707060660008,-567.04206657,0.00047671,31]
[313267690,1707060660018,-500.0,0.00047671,31]
[313267691,1707060660026,-500.0,0.00047671,31]
[313267692,1707060660036,-500.0,0.00047671,31]
[313267693,1707060660045,-500.0,0.00047671,31]
[313267694,1707060660056,-500.0,0.00047671,31]
[313267695,1707060660065,-630.27,0.00047671,31]
[313267696,1707060660075,-500.0,0.00047671,31]
[313267697,1707060660084,-500.0,0.00047671,31]
[313267698,1707060660093,-500.0,0.00047671,31]
[313267699,1707060660102,-500.0,0.00047671,31]
[313267700,1707060660112,-577.9461029,0.00047671,31]
[313267701,1707060660121,-500.0,0.00047671,31]
[313267702,1707060660130,-201.53406227,0.00047671,31]
[313267703,1707060660140,-500.0,0.00047671,31]
[313267704,1707060660149,-636.29167138,0.00047671,31]
[313267705,1707060660159,-500.0,0.00047671,31]
[313267706,1707060660169,-571.52,0.00047671,31]
[313267707,1707060660178,-557.03376018,0.00047671,31]
[313267708,1707060660187,-500.0,0.00047671,31]
[313267709,1707060660197,-500.0,0.00047671,31]
[313267710,1707060660206,-500.0,0.00047671,31]
[313267711,1707060660215,-500.0,0.00047671,31]
[313267712,1707060660225,-500.0,0.00047671,31]
[313267713,1707060660235,-933.81,0.00047671,31]
[313267714,1707060660244,-191.29175887,0.00047671,31]
[313267715,1707060660254,-216.09193756,0.00047671,31]
[313267716,1707060660264,-500.0,0.00047671,31]
[313267717,1707060660275,-540.19493385,0.00047671,31]
[313267718,1707060660285,-500.0,0.00047671,31]
[313267719,1707060660295,-500.0,0.00047671,31]
[313267720,1707060660304,-758.68,0.00047671,31]
[313267721,1707060660313,-500.0,0.00047671,31]
[313267722,1707060660323,-500.0,0.00047671,31]
[313267723,1707060660333,-500.0,0.00047671,31]
[313267724,1707060660343,-500.0,0.00047671,31]
[313267725,1707060660352,-500.0,0.00047671,31]
[313267726,1707060660361,-500.0,0.00047671,31]
[313267727,1707060660371,-500.0,0.00047671,31]
[313267728,1707060660380,-500.0,0.00047671,31]
[313267729,1707060660390,-500.0,0.00047671,31]
[313267730,1707060660399,-535.79455805,0.00047671,31]
[313267731,1707060660409,-721.18,0.00047671,31]
[313267732,1707060660419,-3386.39,0.00047671,31]
[313267733,1707060660429,-500.0,0.00047671,31]
[313267734,1707060660438,-500.0,0.00047671,31]
[313267735,1707060660448,-500.0,0.00047671,31]
[313267736,1707060660458,-500.0,0.00047671,31]
[313267737,1707060660469,-500.0,0.00047671,31]
[313267738,1707060660479,-500.0,0.00047671,31]
[313267739,1707060660489,-500.0,0.00047671,31]
[313267740,1707060660498,-500.0,0.00047671,31]
[313267741,1707060660508,-500.0,0.00047671,31]
[313267742,1707060660517,-500.0,0.00047671,31]
[313267743,1707060660527,-500.0,0.00047671,31]
[313267744,1707060660537,-500.0,0.00047671,31]
[313267745,1707060660546,-298.09206171,0.00047671,31]
[313267746,1707060660558,-500.0,0.00047671,31]
[313267747,1707060660574,-602.54542585,0.00047671,31]
[313267748,1707060660584,-500.0,0.00047671,31]
[313267749,1707060660594,-500.0,0.00047671,2]
[313267750,1707060660606,-500.0,0.00047671,31]
[313267751,1707060660617,-500.0,0.00047671,31]
[313267752,1707060660627,-211.73907875,0.00047671,31]
[313267753,1707060660637,-500.0,0.00047671,31]
[313267754,1707060660652,-645.13665036,0.00047671,31]
[313267755,1707060660662,-500.0,0.00047671,31]
[313267756,1707060660674,-1000.0,0.00047671,7]
[313267757,1707060660683,-193.59932162,0.00047671,31]
[313267758,1707060660693,-500.0,0.00047671,31]
[313267759,1707060660702,-500.0,0.00047671,31]
[313267760,1707060660711,-620.58983808,0.00047671,31]
[313267761,1707060660720,-500.0,0.00047671,31]
[313267762,1707060660730,-583.05469131,0.00047671,31]
[313267763,1707060660740,-500.0,0.00047671,31]
[313267764,1707060660749,-383.40927461,0.00047671,31]
[313267765,1707060660760,-500.0,0.00047671,31]
[313267766,1707060660769,-500.0,0.00047671,31]
[313267767,1707060660779,-4160.16,0.00047671,31]
[313267768,1707060660789,-500.0,0.00047671,31]
[313267769,1707060660799,-500.0,0.00047671,31]
[313267770,1707060660810,-500.0,0.00047671,31]
[313267771,1707060660819,-500.0,0.00047671,31]
[313267772,1707060660829,-500.0,0.00047671,31]
[313267773,1707060660838,-500.0,0.00047671,31]
[313267774,1707060660848,-500.0,0.00047671,31]
[313267775,1707060660857,-500.0,0.00047671,31]
[313267776,1707060660867,-500.0,0.00047671,31]
[313267777,1707060660877,-1252.23,0.00047671,31]
[313267778,1707060660887,-500.0,0.00047671,31]
[313267779,1707060660897,-500.0,0.00047671,31]
[313267780,1707060660906,-500.0,0.00047671,31]
[313267781,1707060660916,-500.0,0.00047671,31]
[313267782,1707060660927,-500.0,0.00047671,31]
[313267783,1707060660936,-500.0,0.00047671,31]
[313267784,1707060660946,-601.48225555,0.00047671,31]
[313267785,1707060660955,-586.96,0.00047671,31]
[313267786,1707060660965,-221.23753597,0.00047671,31]
[313267787,1707060660974,-500.0,0.00047671,31]
[313267788,1707060660985,-230.62330557,0.00047671,31]
[313267789,1707060660994,-827.2,0.00047671,31]
[313267790,1707060661004,-500.0,0.00047671,31]
[313267791,1707060661013,-1000.0,0.00047671,7]
[313267792,1707060661023,-500.0,0.00047671,31]
[313267793,1707060661033,-500.0,0.00047671,31]
[313267794,1707060661043,-500.0,0.00047671,31]
[313267795,1707060661053,-500.0,0.00047671,31]
[313267796,1707060661062,-500.0,0.00047671,31]
[313267797,1707060661072,-1238.33,0.00047671,31]
[313267798,1707060661081,-500.0,0.00047671,31]
[313267799,1707060661090,-2478.43,0.00047671,5]
[313267800,1707060661100,-500.0,0.00047671,31]
[313267801,1707060661109,-500.0,0.00047671,31]
[313267802,1707060661118,-500.0,0.00047671,31]
[313267803,1707060661127,-500.0,0.00047671,31]
[313267804,1707060661137,-812.77,0.00047671,31]
[313267805,1707060661147,-500.0,0.00047671,31]
[313267806,1707060661156,-500.0,0.00047671,31]
[313267807,1707060661165,-500.0,0.00047671,31]
[313267808,1707060661175,-500.0,0.00047671,31]
[313267809,1707060661184,-500.0,0.00047671,31]
[313267810,1707060661193,-500.0,0.00047671,31]
[313267811,1707060661202,-500.0,0.00047671,31]
[313267812,1707060661211,-500.0,0.00047671,31]
[313267813,1707060661220,-477.21268377,0.00047671,31]
[313267814,1707060661229,-500.0,0.00047671,31]
[313267815,1707060661239,-1188.46,0.00047671,31]
[313267816,1707060661248,-553.90650053,0.00047671,31]
[313267817,1707060661257,-500.0,0.00047671,31]
[313267818,1707060661266,-557.20148936,0.00047671,31]
[313267819,1707060661276,-500.0,0.00047671,31]
[313267820,1707060661285,-285.0,0.00047676,28]
[313267821,1707060661294,-1996.0,0.0004769,2]
[313267822,1707060661304,-1147.0,0.0004769,2]
[313267823,1707060661313,-2090.88873719,0.00047695,9]
[313267824,1707060661322,-500.0,0.000477,27]
[313267825,1707060661331,-38458.56931851,0.00047752,7]
[313267826,1707060661341,-30154.74440516,0.00047752,7]
[313267827,1707060661350,-177745.16510405,0.00047753,7]
[313267828,1707060661358,-1337.58648805,0.00047754,7]
[313267829,1707060661368,-152.80440687,0.00047755,120]
[313267830,1707060661377,-152.80440687,0.00047755,120]
[313267831,1707060661386,-151.47233574,0.00047756,36]
[313267832,1707060661395,-669.91536696,0.00047757,7]
[313267833,1707060661405,-19100.2595687,0.00047758,2]
[313267834,1707060661415,-369617.61977533,0.00047758,7]
[313267835,1707060661425,-102140.64917343,0.0004776,7]
[313267836,1707060661434,-102140.64917343,0.00047761,7]
[313267837,1707060661443,-151.0,0.00047761,14]
[313267838,1707060661453,-151.0,0.00047761,14]
[313267839,1707060661462,-151.0,0.00047761,14]
[313267840,1707060661471,-151.0,0.00047761,14]
[313267841,1707060661481,-151.0,0.00047761,14]
[313267842,1707060661492,-151.0,0.00047761,14]
[313267843,1707060661501,-151.0,0.00047761,14]
[313267844,1707060661511,-151.0,0.00047761,14]
[313267845,1707060661520,-151.0,0.00047761,14]
[313267846,1707060661529,-339.237738,0.00047761,14]
[313267847,1707060661538,-339.237738,0.00047761,14]
[313267848,1707060661547,-151.0,0.00047761,14]
[313267849,1707060661559,-151.0,0.00047761,14]
[313267850,1707060661569,-151.0,0.00047761,14]
[313267851,1707060661578,-151.0,0.00047761,14]
[313267852,1707060661588,-151.0,0.00047761,14]
[313267853,1707060661598,-200.669413,0.00047761,14]
[313267854,1707060661608,-151.0,0.00047761,14]
[313267855,1707060661617,-151.0,0.00047761,14]
[313267856,1707060661626,-151.0,0.00047761,7]
[313267857,1707060661637,-238.369451,0.00047761,7]
[313267858,1707060661646,-151.0,0.00047761,14]
[313267859,1707060661656,-151.0,0.00047761,14]
[313267860,1707060661666,-151.0,0.00047761,14]
[313267861,1707060661677,-151.0,0.00047761,14]
[313267862,1707060661686,-459.075409,0.00047761,14]
[313267863,1707060661696,-151.0,0.00047761,14]
[313267864,1707060661706,-459.075409,0.00047761,14]
[313267865,1707060661715,-151.0,0.00047761,14]
[313267866,1707060661724,-151.0,0.00047761,14]
[313267867,1707060661734,-151.0,0.00047761,14]
[313267868,1707060661743,-151.0,0.00047761,14]
[313267869,1707060661752,-151.0,0.00047761,14]
[313267870,1707060661762,-151.0,0.00047761,14]
[313267871,1707060661770,-151.0,0.00047761,14]
[313267872,1707060661875,-151.0,0.00047761,14]
[313267873,1707060661885,-151.0,0.00047761,14]
[313267874,1707060661894,-151.0,0.00047761,14]
[313267875,1707060661904,-669.91536696,0.00047761,7]
[313267876,1707060661913,-2218.34971491,0.00047762,7]
[313267877,1707060661923,-3705.21921134,0.00047763,7]
[313267878,1707060661933,-369617.61977533,0.00047763,7]
[313267879,1707060661942,-1337.58648805,0.00047764,7]
[313267880,1707060661951,-1081.09313243,0.00047764,7]
[313267881,1707060661960,-102140.64917343,0.00047765,7]
[313267882,1707060661969,-3363.38328807,0.00047766,7]
[313267883,1707060661978,-1850.05426386,0.00047767,7]
[313267884,1707060661988,-38458.56931851,0.00047767,7]
[313267885,1707060661997,-279724.01711567,0.00047767,7]
[313267886,1707060662006,-30154.74440516,0.00047768,7]
[313267887,1707060662015,-1850.05426386,0.00047768,7]
[313267888,1707060662025,-1081.09313243,0.00047769,7]
[313267889,1707060662034,-1337.58648805,0.00047772,7]
[313267890,1707060662043,-3705.21921134,0.00047773,7]
[313267891,1707060662052,-37149.95544364,0.00047774,7]
[313267892,1707060662061,-24470.65364088,0.00047774,7]
[313267893,1707060662070,-669.91536696,0.00047774,7]
[313267894,1707060662079,-24470.65364088,0.00047774,7]
[313267895,1707060662088,-366.39011702,0.00047776,7]
[313267896,1707060662098,-177745.16510405,0.00047776,7]
[313267897,1707060662107,-1081.09313243,0.00047777,7]
[313267898,1707060662116,-1850.05426386,0.00047778,7]
[313267899,1707060662125,-3363.38328807,0.00047779,7]
[313267900,1707060662134,-2218.34971491,0.00047781,7]
[313267901,1707060662143,-3705.21921134,0.00047783,7]
[313267902,1707060662152,-366.39011702,0.00047786,7]
[313267903,1707060662161,-30154.74440516,0.00047787,7]
[313267904,1707060662170,-37149.95544364,0.00047787,7]
[313267905,1707060662179,-366.39011702,0.00047787,7]
[313267906,1707060662189,-24470.65364088,0.00047789,7]
[313267907,1707060662198,-38458.56931851,0.00047791,7]